{"text_format":"1","workbook":"xlsx","n_sheets":5,"sheets":["Procedimiento evaluación","Instrucciones","Plantilla valoración","Resultado candidatos","aux"],"not_rendered":{"charts":0,"images":4,"macros":1,"external_links":0,"defined_names":5,"comments":0,"pivot_tables":0},"unopened":[],"bounds":{"document_bytes":16777216,"sheet_cells":100000,"rows_first":2000,"rows_last":500,"rows_between":2000,"halvings":0,"cell_chars":16384,"cell_head_chars":4096},"cells_cut":0,"cells_raw":0,"read":"row_number_cap","date_system":"1900"}

{"sheet":"Procedimiento evaluación","index":0,"n_rows":32,"n_cols":8,"rows_kept":32,"cut":false,"hidden":false,"merged":[[1,2,1,9],[10,3,12,8],[27,7,28,9],[15,3,15,8],[21,3,21,8],[22,2,22,9],[17,2,19,9],[5,4,5,7]]}
[]
[null,null,"PROCEDIMIENTO DE EVALUACIÓN Y ACREDITACIÓN DE LAS COMPETENCIAS PROFESIONALES"]
[]
[]
[]
[null,null,null,null,"TRANSVERSAL"]
[]
[]
[]
[]
[null,null,null,"PLANTILLA DE VALORACIÓN DE LOS CUESTIONARIOS DE AUTOEVALUACIÓN"]
[]
[]
[]
[]
[null,null,null,"UNIDAD DE COMPETENCIA"]
[]
[null,null,"“UY_7059_3: MANTENER/REPARAR LA ESTRUCTURA Y LA CÉLULA DE AERONAVES”"]
[]
[]
[]
[null,null,null,"INFORMACIÓN CONFIDENCIAL"]
[null,null,"PARA USO EXCLUSIVO DE ASESORES/AS Y EVALUADORES/AS"]
[]
[]
[]
[null,null,"Nombre y apellidos del Asesor/a:      ",null,null,null,null,"Firma:"]
[]
[null,null,"DNI/NIE "]
[null,null,"Nombre y apellidos del candidato/a:      "]
[]
[null,null,"DNI/NIE"]

{"sheet":"Instrucciones","index":1,"n_rows":51,"n_cols":6,"rows_kept":51,"cut":false,"hidden":false,"merged":[[43,2,43,5],[28,3,28,4],[29,3,29,4],[30,3,30,4],[31,3,31,4],[32,3,32,4],[38,2,38,5],[26,2,26,5],[35,2,35,5],[8,2,8,5],[23,2,23,5],[2,2,3,5],[24,2,24,5],[11,2,12,2],[11,3,12,3],[11,4,12,4],[6,2,6,5]]}
[]
[]
[null,null,"INFORMACIÓN E INSTRUCCIONES GENERALES DE VALORACIÓN DEL CUESTIONARIO DE AUTOEVALUACIÓN"]
[]
[]
[]
[null,null,"1.          La información tratada en esta plantilla de valoración del cuestionario de autoevaluación tiene carácter confidencial. Podrá ser conocida por las personas candidatas en los términos que establezca la Administración competente."]
[]
[null,null,"2.          La tabla representa el esquema general de la plantilla para el cálculo de la valoración objetiva del cuestionario de autoevaluación cumplimentado por las personas candidatas. Ha sido estructurada para su tratamiento manual e informático mediante hoja de cálculo."]
[]
[]
[null,null,"ACTIVIDADES PROFESIONALES","PESO ACTIVIDADES","VALOR INDICADOR AUTOEVALUACIÓN","VALOR"]
[null,null,null,null,null,"aij x pij"]
[null,null,"api1","pi1","ai1","ai1 x pi1"]
[null,null,"api2","pi2","ai2","ai2 x pi2"]
[null,null,".",".",".","."]
[null,null,".",".",".","."]
[null,null,".",".",".","."]
[null,null,".",".",".","."]
[null,null,"apin","pin","ain","ain x pin"]
[null,null,"SUMAS",null,"--"]
[null,null,"APi","zi","Puntuación ponderada (bi) APi"]
[]
[null,null,"3.          Las variables que figuran en la Tabla tienen el siguiente significado:"]
[null,null,"pij : Peso atribuido por las personas expertas [1] a cada una de las actividades profesionales (apin) definidas a dos dígitos en el cuestionario de autoevaluación, para el cálculo de la puntuación ponderada de cada actividad profesional definida con un dígito (APi) en el citado cuestionario."]
[]
[null,null,"aij : Valor atribuido al “indicador de autoevaluación” en los cuestionarios de autoevaluación, según la posición señalada por el candidato o candidata, en base a la siguiente escala:"]
[]
[null,null,"Indicador de autoevaluación","Grado de dominio de las ap",null,"Valor atribuido"]
[null,null,1,"No sé hacerlo ",null,0]
[null,null,2,"Lo puedo hacer con ayuda",null,4]
[null,null,3,"Lo puedo hacer sin necesitar ayuda",null,7]
[null,null,4,"Lo puedo hacer sin necesitar ayuda, e incluso podría formar a otro trabajador/a",null,10]
[]
[]
[null,null,"zi : Peso atribuido por las personas expertas a cada APi para el cálculo de la puntuación final"]
[]
[]
[null,null,"4.          La puntuación ponderada (bi) de cada APi, viene dada por la fórmula"]
[null,null,"                                            "]
[]
[]
[]
[null,null,"5.          La puntuación final alcanzada por el candidato/a se obtiene por la fórmula"]
[]
[null,null,"Puntuación UC = "]
[]
[]
[]
[]
[null,"[1]  Expertos que han participado en la elaboración de las guías de evidencia y cuestionarios de autoevaluación."]

{"sheet":"Plantilla valoración","index":2,"n_rows":182,"n_cols":5,"rows_kept":182,"cut":false,"hidden":false,"merged":[[4,1,5,1],[0,1,2,4],[21,1,22,1],[38,1,39,1],[55,1,56,1],[175,1,176,4],[179,1,179,3],[181,1,181,3],[72,1,73,1],[89,1,90,1],[106,1,107,1],[123,1,124,1],[140,1,141,1],[157,1,158,1]]}
[null,"PLANTILLA DE VALORACIÓN DE LA “UY_7059_3: MANTENER/REPARAR LA ESTRUCTURA Y LA CÉLULA DE AERONAVES”"]
[]
[]
[]
[null,"ACTIVIDADES PROFESIONALES","PESO","VALOR","VALOR"]
[null,null,"ACTIVIDADES (pij)","INDICADOR AUTOEVALUACIÓN (aij)","(aij x pij)"]
[null,"ap 1.1",8,null,{"$f":"IF(D7=\"\",\"\",IF(D7=1,0*C7,IF(D7=2,4*C7,IF(D7=3,7*C7,IF(D7=4,10*C7)))))","v":""}]
[null,"ap 1.2",7,null,{"$f":"IF(D8=\"\",\"\",IF(D8=1,0*C8,IF(D8=2,4*C8,IF(D8=3,7*C8,IF(D8=4,10*C8)))))","v":""}]
[null,"ap 1.3",9,null,{"$f":"IF(D9=\"\",\"\",IF(D9=1,0*C9,IF(D9=2,4*C9,IF(D9=3,7*C9,IF(D9=4,10*C9)))))","v":""}]
[null,"ap 1.4",8,null,{"$f":"IF(D10=\"\",\"\",IF(D10=1,0*C10,IF(D10=2,4*C10,IF(D10=3,7*C10,IF(D10=4,10*C10)))))","v":""}]
[null,"ap 1.5",9,null,{"$f":"IF(D11=\"\",\"\",IF(D11=1,0*C11,IF(D11=2,4*C11,IF(D11=3,7*C11,IF(D11=4,10*C11)))))","v":""}]
[null,"ap 1.6",8,null,""]
[null,"ap 1.7",8,null,""]
[null,"ap 1.8",8,null,""]
[null,"ap 1.9",null,null,""]
[null,"ap 1.10",null,null,""]
[null,"ap 1.11",null,null,""]
[null,"ap 1.12",null,null,""]
[null,"SUMAS",{"$f":"SUM(C7:C18)","v":65},"-",{"$f":"SUM(E7:E18)","v":0}]
[null,"AP1",8,"Puntuación ponderada (b1) AP1",{"$f":"IF(E19=0,\"\",E19/C19)","v":""}]
[]
[null,"ACTIVIDADES PROFESIONALES","PESO","VALOR","VALOR"]
[null,null,"ACTIVIDADES (pij)","INDICADOR AUTOEVALUACIÓN (aij)","(aij x pij)"]
[null,"ap 2.1",9,null,{"$f":"IF(D24=\"\",\"\",IF(D24=1,0*C24,IF(D24=2,4*C24,IF(D24=3,7*C24,IF(D24=4,10*C24)))))","v":""}]
[null,"ap 2.2",9,null,""]
[null,"ap 2.3",9,null,""]
[null,"ap 2.4",9,null,""]
[null,"ap 2.5",9,null,""]
[null,"ap 2.6",8,null,""]
[null,"ap 2.7",null,null,""]
[null,"ap 2.8",null,null,""]
[null,"ap 2.9",null,null,""]
[null,"ap 2.10",null,null,""]
[null,"ap 2.11",null,null,""]
[null,"ap 2.12",null,null,""]
[null,"SUMAS",{"$f":"SUM(C24:C35)","v":53},"--",{"$f":"SUM(E24:E35)","v":0}]
[null,"AP2",9,"Puntuación ponderada (b2) AP2",{"$f":"IF(E36=0,\"\",E36/C36)","v":""}]
[]
[null,"ACTIVIDADES PROFESIONALES","PESO","VALOR","VALOR"]
[null,null,"ACTIVIDADES (pij)","INDICADOR AUTOEVALUACIÓN (aij)","(aij x pij)"]
[null,"ap 3.1",8,null,{"$f":"IF(D41=\"\",\"\",IF(D41=1,0*C41,IF(D41=2,4*C41,IF(D41=3,7*C41,IF(D41=4,10*C41)))))","v":""}]
[null,"ap 3.2",7,null,""]
[null,"ap 3.3",8,null,""]
[null,"ap 3.4",9,null,""]
[null,"ap 3.5",8,null,""]
[null,"ap 3.6",null,null,""]
[null,"ap 3.7",null,null,""]
[null,"ap 3.8",null,null,""]
[null,"ap 3.9",null,null,""]
[null,"ap 3.10",null,null,""]
[null,"ap 3.11",null,null,""]
[null,"ap 3.12",null,null,""]
[null,"SUMAS",{"$f":"SUM(C41:C52)","v":40},"--",{"$f":"SUM(E41:E52)","v":0}]
[null,"AP3",8,"Puntuación ponderada (b3) AP3",{"$f":"IF(E53=0,\"\",E53/C53)","v":""}]
[]
[null,"ACTIVIDADES PROFESIONALES","PESO","VALOR","VALOR"]
[null,null,"ACTIVIDADES (pij)","INDICADOR AUTOEVALUACIÓN (aij)","(aij x pij)"]
[null,"ap 4.1",8,null,{"$f":"IF(D58=\"\",\"\",IF(D58=1,0*C58,IF(D58=2,4*C58,IF(D58=3,7*C58,IF(D58=4,10*C58)))))","v":""}]
[null,"ap 4.2",7,null,""]
[null,"ap 4.3",7,null,""]
[null,"ap 4.4",9,null,""]
[null,"ap 4.5",9,null,""]
[null,"ap 4.6",8,null,""]
[null,"ap 4.7",8,null,""]
[null,"ap 4.8",8,null,""]
[null,"ap 4.9",null,null,""]
[null,"ap 4.10",null,null,""]
[null,"ap 4.11",null,null,""]
[null,"ap 4.12",null,null,""]
[null,"SUMAS",{"$f":"SUM(C58:C69)","v":64},"--",{"$f":"SUM(E58:E69)","v":0}]
[null,"AP4",8,"Puntuación ponderada (b4) AP4",{"$f":"IF(E70=0,\"\",E70/C70)","v":""}]
[]
[null,"ACTIVIDADES PROFESIONALES","PESO",null,"VALOR"]
[null,null,"ACTIVIDADES (pij)",null,"(aij x pij)"]
[null,"ap 5.1",8]
[null,"ap 5.2",7,null,{"$f":"IF(D76=\"\",\"\",IF(D76=1,0*C76,IF(D76=2,4*C76,IF(D76=3,7*C76,IF(D76=4,10*C76)))))","v":""}]
[null,"ap 5.3",8,null,""]
[null,"ap 5.4",8,null,""]
[null,"ap 5.5",8,null,""]
[null,"ap 5.6",8,null,""]
[null,"ap 5.7",null,null,""]
[null,"ap 5.8",null,null,""]
[null,"ap 5.9",null,null,""]
[null,"ap 5.10",null,null,""]
[null,"ap 5.11",null,null,""]
[null,"ap 5.12",null,null,""]
[null,"SUMAS",{"$f":"SUM(C75:C86)","v":47},"--",{"$f":"SUM(E75:E86)","v":0}]
[null,"AP5",8,"Puntuación ponderada (b5) AP5",{"$f":"IF(E87=0,\"\",E87/C87)","v":""}]
[]
[null,"ACTIVIDADES PROFESIONALES","PESO","VALOR","VALOR"]
[null,null,"ACTIVIDADES (pij)","INDICADOR AUTOEVALUACIÓN (aij)","(aij x pij)"]
[null,"ap 6.1",8,null,{"$f":"IF(D92=\"\",\"\",IF(D92=1,0*C92,IF(D92=2,4*C92,IF(D92=3,7*C92,IF(D92=4,10*C92)))))","v":""}]
[null,"ap 6.2",7,null,""]
[null,"ap 6.3",9,null,""]
[null,"ap 6.4",8,null,""]
[null,"ap 6.5",8,null,""]
[null,"ap 6.6",8,null,""]
[null,"ap 6.7",null,null,""]
[null,"ap 6.8",null,null,""]
[null,"ap 6.9",null,null,""]
[null,"ap 6.10",null,null,""]
[null,"ap 6.11",null,null,""]
[null,"ap 6.12",null,null,""]
[null,"SUMAS",{"$f":"SUM(C92:C103)","v":48},"--",{"$f":"SUM(E92:E103)","v":0}]
[null,"AP6",8,"Puntuación ponderada (b6) AP6",{"$f":"IF(E104=0,\"\",E104/C104)","v":""}]
[]
[null,"ACTIVIDADES PROFESIONALES","PESO","VALOR","VALOR"]
[null,null,"ACTIVIDADES (pij)","INDICADOR AUTOEVALUACIÓN (aij)","(aij x pij)"]
[null,"ap 7.1",null,null,{"$f":"IF(D109=\"\",\"\",IF(D109=1,0*C109,IF(D109=2,4*C109,IF(D109=3,7*C109,IF(D109=4,10*C109)))))","v":""}]
[null,"ap 7.2",null,null,""]
[null,"ap 7.3",null,null,""]
[null,"ap 7.4",null,null,""]
[null,"ap 7.5",null,null,""]
[null,"ap 7.6",null,null,""]
[null,"ap 7.7",null,null,""]
[null,"ap 7.8",null,null,""]
[null,"ap 7.9",null,null,""]
[null,"ap 7.10",null,null,""]
[null,"ap 7.11",null,null,""]
[null,"ap 7.12",null,null,""]
[null,"SUMAS",{"$f":"SUM(C109:C120)","v":0},"--",{"$f":"SUM(E109:E120)","v":0}]
[null,"AP7",null,"Puntuación ponderada (b7) AP7",{"$f":"IF(E121=0,\"\",E121/C121)","v":""}]
[]
[null,"ACTIVIDADES PROFESIONALES","PESO","VALOR","VALOR"]
[null,null,"ACTIVIDADES (pij)","INDICADOR AUTOEVALUACIÓN (aij)","(aij x pij)"]
[null,"ap 8.1",null,null,{"$f":"IF(D126=\"\",\"\",IF(D126=1,0*C126,IF(D126=2,4*C126,IF(D126=3,7*C126,IF(D126=4,10*C126)))))","v":""}]
[null,"ap 8.2",null,null,""]
[null,"ap 8.3",null,null,""]
[null,"ap 8.4",null,null,""]
[null,"ap 8.5",null,null,""]
[null,"ap 8.6",null,null,""]
[null,"ap 8.7",null,null,""]
[null,"ap 8.8",null,null,""]
[null,"ap 8.9",null,null,""]
[null,"ap 8.10",null,null,""]
[null,"ap 8.11",null,null,""]
[null,"ap 8.12",null,null,""]
[null,"SUMAS",{"$f":"SUM(C126:C137)","v":0},"--",{"$f":"SUM(E126:E137)","v":0}]
[null,"AP8",null,"Puntuación ponderada (b8) AP8",{"$f":"IF(E138=0,\"\",E138/C138)","v":""}]
[]
[null,"ACTIVIDADES PROFESIONALES","PESO","VALOR","VALOR"]
[null,null,"ACTIVIDADES (pij)","INDICADOR AUTOEVALUACIÓN (aij)","(aij x pij)"]
[null,"ap 9.1",null,null,{"$f":"IF(D143=\"\",\"\",IF(D143=1,0*C143,IF(D143=2,4*C143,IF(D143=3,7*C143,IF(D143=4,10*C143)))))","v":""}]
[null,"ap 9.2",null,null,""]
[null,"ap 9.3",null,null,""]
[null,"ap 9.4",null,null,""]
[null,"ap 9.5",null,null,""]
[null,"ap 9.6",null,null,""]
[null,"ap 9.7",null,null,""]
[null,"ap 9.8",null,null,""]
[null,"ap 9.9",null,null,""]
[null,"ap 9.10",null,null,""]
[null,"ap 9.11",null,null,""]
[null,"ap 9.12",null,null,""]
[null,"SUMAS",{"$f":"SUM(C143:C154)","v":0},"--",{"$f":"SUM(E143:E153)","v":0}]
[null,"AP9",null,"Puntuación ponderada (b9) AP9",{"$f":"IF(E155=0,\"\",E155/C155)","v":""}]
[]
[null,"ACTIVIDADES PROFESIONALES","PESO","VALOR","VALOR"]
[null,null,"ACTIVIDADES (pij)","INDICADOR AUTOEVALUACIÓN (aij)","(aij x pij)"]
[null,"ap 10.1",null,null,{"$f":"IF(D160=\"\",\"\",IF(D160=1,0*C160,IF(D160=2,4*C160,IF(D160=3,7*C160,IF(D160=4,10*C160)))))","v":""}]
[null,"ap 10.2",null,null,""]
[null,"ap 10.3",null,null,""]
[null,"ap 10.4",null,null,""]
[null,"ap 10.5",null,null,""]
[null,"ap 10.6",null,null,""]
[null,"ap 10.7",null,null,""]
[null,"ap 10.8",null,null,""]
[null,"ap 10.9",null,null,""]
[null,"ap 10.10",null,null,""]
[null,"ap 10.11",null,null,""]
[null,"ap 10.12",null,null,""]
[null,"SUMAS",{"$f":"SUM(C160:C171)","v":0},"--",{"$f":"SUM(E160:E170)","v":0}]
[null,"AP10",null,"Puntuación ponderada (b10) AP10",{"$f":"IF(E172=0,\"\",E172/C172)","v":""}]
[]
[]
[null,"RESULTADOS FINALES DE LA “UY_7059_3: MANTENER/REPARAR LA ESTRUCTURA Y LA CÉLULA DE AERONAVES”"]
[]
[]
[]
[null,"Puntuación a partir de la cual el candidato o candidata tiene probabilidades de superar la evaluación",null,null,6]
[]
[null,"Puntuación alcanzada en la valoración del cuestionario de autoevaluación",null,null,{"$f":"IF(SUM(C20,C37,C54,C71,C88,C105,C122,C139,C156,C173)=0,\"\",SUM(PRODUCT(IF(E20=\"\",0,E20),C20),PRODUCT(IF(E37=\"\",0,E37),C37),PRODUCT(IF(E54=\"\",0,E54),C54),PRODUCT(IF(E71=\"\",0,E71),C71), PRODUCT(IF(E88=\"\",0,E88),C88),PRODUCT(IF(E105=\"\",0,E105),C105),PRODUCT(IF(E122=\"\",0,E122),C122),PRODUCT(IF(E139=\"\",0,E139),C139),PRODUCT(IF(E156=\"\",0,E156),C156),PRODUCT(IF(E173=\"\",0,E173),C173))/SUM(C20,C37,C54,C71,C88,C105,C122,C139,C156,C173))","v":0}]

{"sheet":"Resultado candidatos","index":3,"n_rows":4,"n_cols":6,"rows_kept":4,"cut":false,"hidden":false,"merged":[],"read":"row_number_cap"}
[]
[]
[]
["Código UC","Nombre y apellidos del candidato/a","DNI/NIE","Puntuación obtenida","Nombre y apellidos del Asesor/a","DNI/NIE"]

{"sheet":"aux","index":4,"n_rows":8,"n_cols":5,"rows_kept":8,"cut":false,"hidden":false,"merged":[]}
[]
[null,{"$f":"\"\"","v":""}]
[null,1,null,"Código UC",{"$f":"'Procedimiento evaluación'!C18","v":"“UY_7059_3: MANTENER/REPARAR LA ESTRUCTURA Y LA CÉLULA DE AERONAVES”"}]
[null,2,null,"Nombre y apellidos del candidato/a:      ",{"$f":"'Procedimiento evaluación'!C31","v":0}]
[null,3,null,"NIF: ",{"$f":"'Procedimiento evaluación'!D32","v":0}]
[null,4,null,"Puntuación obtenida",{"$f":"'Plantilla valoración'!E182","v":0}]
[null,null,null,"Nombre y apellidos del Asesor/a:      ",{"$f":"'Procedimiento evaluación'!C28","v":0}]
[null,null,null,"NIF: ",{"$f":"'Procedimiento evaluación'!D29","v":0}]